[Event "GER-chT Youth Countries 2020"]
[Site "Berlin"]
[Date "2020.10.03"]
[Round "6"]
[White "Tiarks, Jann-Christian"]
[Black "Maetzkow, Maximilian Paul"]
[Result "0-1"]
[ECO "B52"]
[WhiteElo "2151"]
[BlackElo "2242"]
[Annotator "ChessBase"]
[PlyCount "59"]
[EventDate "2020.09.30"]
[EventType "team-tourn"]
[EventRounds "7"]
[EventCountry "GER"]
[SourceTitle "playchess.com"]
[Source "ChessBase"]
[SourceQuality "1"]
[TimeControl "30/5400+30:0"]

1. e4 {[%emt 0:00:00]} c5 {[%emt 0:00:00]} 2. Nf3 {[%emt 0:00:00]} d6 {[%emt 0:00:00]} 3. Bb5+ {[%emt 0:00:00]} Bd7 {[%emt 0:00:10]} 4. c4 {[%emt 0:00:00]} Nf6 {[%emt 0:00:42]} 5. Nc3 {[%emt 0:00:06]} g6 {[%emt 0:00:56]} 6. d4 {[%emt 0:00:22]} Bxb5 {[%emt 0:00:11]} 7. cxb5 {[%emt 0:00:11]} cxd4 {[%emt 0:00:03]} 8. Nxd4 {[%emt 0:00:08]} Bg7 {[%emt 0:00:04]} 9. O-O {[%emt 0:01:05]} O-O {[%emt 0:00:05]} 10. Qe2 {[%emt 0:00:53]} Nbd7 {[%emt 0:01:35]} 11. Rd1 {[%emt 0:01:03]} Rc8 {[%emt 0:02:55]} 12. Be3 {[%emt 0:01:43]} Rc7 {[%emt 0:29:40]} 13. Rac1 {[%emt 0:19:54]} Qb8 {[%emt 0:03:12]} 14. f3 {[%emt 0:03:08]} Rfc8 {[%emt 0:00:14]} 15. Nb3 {[%emt 0:00:16]} Ne5 {[%emt 0:09:14]} 16. Qf2 {[%emt 0:10:40]} b6 {[%emt 0:07:38]} 17. Nd4 {[%emt 0:00:52]} Qb7 {[%emt 0:00:06]} 18. Qe2 {[%emt 0:01:27]} e6 {[%emt 0:11:02]} 19. f4 {[%emt 0:17:40]} Ned7 {[%emt 0:01:41]} 20. Nc6 {[%emt 0:00:48]} Nb8 {[%emt 0:00:22]} 21. Nxb8 {[%emt 0:03:49]} Qxb8 {[%emt 0:01:21]} 22. Bd4 {[%emt 0:02:54]} Rc4 {[%emt 0:02:48]} 23. b3 {[%emt 0:08:42]} Rxd4 {[%emt 0:01:34]} 24. Rxd4 {[%emt 0:00:12]} Nd5 25. Rc4 {[%emt 0:10:24]} Nxc3 {[%emt 0:00:17]} 26. Qd3 {[%emt 0:00:12]} Rxc4 {[%emt 0:02:06]} 27. Qxc4 {[%emt 0:00:15]} d5 {[%emt 0:00:11]} 28. exd5 {[%emt 0:01:30]} exd5 {[%emt 0:00:05]} 29. Qd3 {[%emt 0:00:15]} Qxf4 {[%emt 0:00:14]} 30. Rc2 {[%emt 0:02:49]} 0-1

[Event "GER-chT Youth Countries 2020"]
[Site "Berlin"]
[Date "2020.10.03"]
[Round "6"]
[White "Popvasilev, Kaloyan"]
[Black "Colbow, Collin"]
[Result "1/2-1/2"]
[ECO "B62"]
[WhiteElo "2145"]
[BlackElo "2210"]
[Annotator "ChessBase"]
[PlyCount "73"]
[EventDate "2020.09.30"]
[EventType "team-tourn"]
[EventRounds "7"]
[EventCountry "GER"]
[SourceTitle "playchess.com"]
[Source "ChessBase"]
[SourceQuality "1"]
[TimeControl "30/5400+30:0"]

1. e4 {[%emt 0:00:00]} c5 {[%emt 0:00:00]} 2. Nf3 {[%emt 0:00:00]} d6 {[%emt 0:00:00]} 3. d4 {[%emt 0:00:00]} cxd4 {[%emt 0:00:00]} 4. Nxd4 {[%emt 0:00:00]} Nf6 {[%emt 0:00:06]} 5. Nc3 {[%emt 0:00:01]} Nc6 {[%emt 0:00:04]} 6. Bg5 {[%emt 0:00:56]} e6 {[%emt 0:00:08]} 7. Qd3 {[%emt 0:02:41]} a6 {[%emt 0:08:12]} 8. Nxc6 {[%emt 0:03:01]} bxc6 {[%emt 0:00:11]} 9. O-O-O {[%emt 0:00:12]} Qa5 {[%emt 0:04:32]} 10. Bf4 {[%emt 0:21:29]} e5 {[%emt 0:07:26]} 11. Bg3 {[%emt 0:00:35]} Be7 {[%emt 0:01:52]} 12. Be2 {[%emt 0:05:00]} O-O {[%emt 0:04:25]} 13. f4 {[%emt 0:01:19]} exf4 {[%emt 0:03:03]} 14. Bxf4 {[%emt 0:00:09]} Rd8 {[%emt 0:03:08]} 15. Qg3 {[%emt 0:05:24]} Be6 {[%emt 0:11:13]} 16. Bxd6 {[%emt 0:18:38]} Bxd6 {[%emt 0:20:47]} 17. Rxd6 {[%emt 0:00:17]} Rxd6 {[%emt 0:00:33]} 18. Qxd6 {[%emt 0:00:07]} Qg5+ {[%emt 0:02:36]} 19. Kb1 {[%emt 0:13:49]} Qxg2 {[%emt 0:00:17]} 20. Rd1 {[%emt 0:00:10]} g6 {[%emt 0:06:31]} 21. Qg3 {[%emt 0:02:11]} Qxg3 {[%emt 0:01:45]} 22. hxg3 {[%emt 0:00:04]} a5 {[%emt 0:00:50]} 23. Rd6 {[%emt 0:01:13]} Rc8 {[%emt 0:00:28]} 24. Kc1 {[%emt 0:07:17]} Kf8 {[%emt 0:02:49]} 25. Rd1 {[%emt 0:04:30]} Ke7 {[%emt 0:01:16]} 26. Kd2 {[%emt 0:00:26]} Rd8+ {[%emt 0:02:27]} 27. Ke3 {[%emt 0:00:07]} Rxd1 {[%emt 0:00:10]} 28. Bxd1 {[%emt 0:01:33]} Nd7 {[%emt 0:02:29]} 29. a3 {[%emt 0:02:02]} c5 {[%emt 0:06:53]} 30. Be2 {[%emt 0:03:05]} Ne5 {[%emt 0:01:26]} 31. Nb5 {[%emt 1:31:55]} g5 {[%emt 1:31:54]} 32. Nc7 {[%emt 0:00:48]} Kd6 {[%emt 0:07:30]} 33. Ne8+ {[%emt 0:06:19]} Ke7 {[%emt 0:00:46]} 34. Nc7 {[%emt 0:00:04]} Kd6 {[%emt 0:00:04]} 35. Ne8+ {[%emt 0:00:03]} Ke7 {[%emt 0:00:52]} 36. Nc7 {[%emt 0:00:08]} Kd6 {[%emt 0:00:42]} 37. Ne8+ {[%emt 0:00:06]} 1/2-1/2

[Event "GER-chT Youth Countries 2020"]
[Site "Berlin"]
[Date "2020.10.03"]
[Round "6"]
[White "Sreyas Payyappat"]
[Black "Halabi, Ibrahim"]
[Result "1/2-1/2"]
[ECO "B90"]
[WhiteElo "2144"]
[BlackElo "1895"]
[Annotator "ChessBase"]
[PlyCount "63"]
[EventDate "2020.09.30"]
[EventType "team-tourn"]
[EventRounds "7"]
[EventCountry "GER"]
[SourceTitle "playchess.com"]
[Source "ChessBase"]
[SourceQuality "1"]
[TimeControl "30/5400+30:0"]

1. e4 c5 2. Nf3 d6 3. d4 {[%emt 0:00:00]} cxd4 {[%emt 0:00:00]} 4. Nxd4 {[%emt 0:00:00]} Nf6 {[%emt 0:00:00]} 5. Nc3 {[%emt 0:00:00]} a6 6. h3 {[%emt 0:00:05]} e5 {[%emt 0:00:12]} 7. Nf3 {[%emt 0:00:46]} Be6 {[%emt 0:00:37]} 8. Ng5 Be7 {[%emt 0:00:05]} 9. Nxe6 {[%emt 0:02:01]} fxe6 {[%emt 0:00:22]} 10. Bc4 {[%emt 0:00:25]} Qd7 {[%emt 0:06:58]} 11. Bg5 {[%emt 0:01:47]} O-O {[%emt 0:18:38]} 12. f4 {[%emt 0:00:19]} b5 {[%emt 0:04:44]} 13. Bb3 {[%emt 0:04:31]} Nc6 {[%emt 0:01:34]} 14. f5 {[%emt 0:00:30]} Nd4 {[%emt 0:02:07]} 15. Bxf6 {[%emt 0:06:21]} Bxf6 {[%emt 0:01:50]} 16. Qg4 {[%emt 0:00:30]} Nxb3 {[%emt 0:02:04]} 17. fxe6 {[%emt 0:11:40]} Qa7 {[%emt 0:00:38]} 18. axb3 {[%emt 0:00:23]} Qe3+ {[%emt 0:00:42]} 19. Kd1 {[%emt 0:00:39]} Bg5 {[%emt 0:07:12]} 20. Qe2 {[%emt 0:15:00]} Qc5 {[%emt 0:04:40]} 21. b4 {[%emt 0:10:03]} Qb6 {[%emt 0:02:45]} 22. Qd3 {[%emt 0:01:02]} Rf2 {[%emt 0:02:01]} 23. Nd5 {[%emt 0:16:09]} Qa7 {[%emt 0:05:33]} 24. Ke1 {[%emt 0:06:16]} Rd2 {[%emt 0:02:47]} 25. Qf3 {[%emt 0:16:52]} Rf8 {[%emt 0:00:12]} 26. Qxf8+ {[%emt 0:00:03]} Kxf8 {[%emt 0:02:27]} 27. Rf1+ {[%emt 0:01:28]} Ke8 {[%emt 0:15:27]} 28. Rxa6 {[%emt 0:00:14]} Rd1+ {[%emt 0:00:30]} 29. Ke2 {[%emt 0:00:30]} Rd2+ 30. Ke1 {[%emt 0:00:11]} Rd1+ {[%emt 0:05:22]} 31. Ke2 {[%emt 1:30:08]} Rd2+ {[%emt 1:31:31]} 32. Ke1 1/2-1/2

[Event "GER-chT Youth Countries 2020"]
[Site "Berlin"]
[Date "2020.10.03"]
[Round "6"]
[White "Lange, Jannis"]
[Black "Koelle, Tobias"]
[Result "0-1"]
[ECO "A05"]
[WhiteElo "2126"]
[BlackElo "2275"]
[Annotator "ChessBase"]
[PlyCount "70"]
[EventDate "2020.09.30"]
[EventType "team-tourn"]
[EventRounds "7"]
[EventCountry "GER"]
[SourceTitle "playchess.com"]
[Source "ChessBase"]
[SourceQuality "1"]
[TimeControl "30/5400+30:0"]

1. Nf3 {[%emt 0:00:00]} Nf6 {[%emt 0:00:00]} 2. g3 {[%emt 0:00:00]} d5 {[%emt 0:00:00]} 3. Bg2 {[%emt 0:00:08]} c6 {[%emt 0:00:00]} 4. O-O {[%emt 0:00:23]} Bf5 {[%emt 0:00:00]} 5. d4 {[%emt 0:02:42]} e6 {[%emt 0:00:12]} 6. c4 {[%emt 0:01:43]} h6 {[%emt 0:00:13]} 7. Nc3 {[%emt 0:00:19]} Nbd7 {[%emt 0:00:19]} 8. Nd2 {[%emt 0:04:46]} Be7 {[%emt 0:00:13]} 9. e4 {[%emt 0:00:53]} dxe4 {[%emt 0:00:05]} 10. Ndxe4 {[%emt 0:00:07]} Nxe4 {[%emt 0:00:46]} 11. Nxe4 {[%emt 0:00:06]} O-O {[%emt 0:00:18]} 12. Be3 {[%emt 0:02:50]} Nf6 {[%emt 0:02:18]} 13. Nxf6+ {[%emt 0:07:36]} Bxf6 {[%emt 0:00:35]} 14. Qd2 {[%emt 0:05:49]} Qe7 {[%emt 0:09:26]} 15. Rfd1 {[%emt 0:02:35]} Rfd8 {[%emt 0:00:29]} 16. Qe2 {[%emt 0:00:34]} Rd7 {[%emt 0:14:16]} 17. Rd2 {[%emt 0:00:18]} Rad8 {[%emt 0:03:04]} 18. Rad1 {[%emt 0:00:27]} Qb4 {[%emt 0:13:41]} 19. g4 {[%emt 0:27:05]} Bg6 {[%emt 0:00:37]} 20. f4 {[%emt 0:02:16]} Qa5 {[%emt 0:06:28]} 21. a3 {[%emt 0:04:02]} Qa6 {[%emt 0:01:54]} 22. Bf3 {[%emt 0:10:18]} Bh7 {[%emt 0:04:08]} 23. g5 {[%emt 0:03:14]} hxg5 {[%emt 0:00:23]} 24. fxg5 {[%emt 0:00:03]} Be7 {[%emt 0:00:07]} 25. Bg4 {[%emt 0:00:28]} Qa5 {[%emt 0:01:46]} 26. d5 {[%emt 0:02:30]} cxd5 {[%emt 0:00:29]} 27. cxd5 {[%emt 0:00:04]} Rxd5 {[%emt 0:00:34]} 28. Rxd5 {[%emt 0:02:02]} Rxd5 {[%emt 0:00:31]} 29. Rxd5 {[%emt 0:06:01]} Qxd5 {[%emt 0:00:38]} 30. Qd2 {[%emt 0:00:20]} Bc5 {[%emt 0:01:39]} 31. Qf2 {[%emt 1:31:29]} Qe4 {[%emt 1:31:53]} 32. Bxc5 {[%emt 0:09:33]} Qxg4+ {[%emt 0:00:02]} 33. Kf1 {[%emt 0:00:39]} Qxg5 {[%emt 0:00:30]} 34. Qe3 {[%emt 0:00:19]} Qf5+ {[%emt 0:00:42]} 35. Ke1 {[%emt 0:00:05]} Qb1+ 0-1

[Event "GER-chT Youth Countries 2020"]
[Site "Berlin"]
[Date "2020.10.03"]
[Round "6"]
[White "Burian, Simon"]
[Black "Zimmer, Luca"]
[Result "1-0"]
[ECO "C15"]
[WhiteElo "2113"]
[BlackElo "1690"]
[Annotator "ChessBase"]
[PlyCount "67"]
[EventDate "2020.09.30"]
[EventType "team-tourn"]
[EventRounds "7"]
[EventCountry "GER"]
[SourceTitle "playchess.com"]
[Source "ChessBase"]
[SourceQuality "1"]
[TimeControl "30/5400+30:0"]

1. e4 {[%emt 0:00:00]} e6 {[%emt 0:00:00]} 2. d4 {[%emt 0:00:00]} d5 {[%emt 0:00:00]} 3. Nc3 {[%emt 0:00:00]} Bb4 {[%emt 0:00:00]} 4. Qg4 {[%emt 0:00:00]} Ne7 {[%emt 0:01:35]} 5. exd5 {[%emt 0:03:50]} exd5 {[%emt 0:02:06]} 6. Qxg7 {[%emt 0:01:32]} Rg8 {[%emt 0:08:01]} 7. Qh6 {[%emt 0:01:54]} Bf5 {[%emt 0:03:29]} 8. Qd2 {[%emt 0:05:10]} c5 {[%emt 0:22:42]} 9. Nge2 {[%emt 0:03:02]} Nbc6 {[%emt 0:00:53]} 10. a3 {[%emt 0:01:14]} Ba5 {[%emt 0:09:20]} 11. f3 {[%emt 0:09:53]} Qb6 {[%emt 0:07:03]} 12. dxc5 {[%emt 0:01:39]} Qxc5 {[%emt 0:12:43]} 13. b4 {[%emt 0:00:50]} Nxb4 {[%emt 0:02:22]} 14. axb4 {[%emt 0:00:07]} Bxb4 {[%emt 0:00:05]} 15. Bb2 {[%emt 0:00:40]} Nc6 {[%emt 0:03:01]} 16. O-O-O {[%emt 0:03:34]} Be6 {[%emt 0:04:30]} 17. Nd4 {[%emt 0:01:13]} Rc8 {[%emt 0:01:58]} 18. Nxc6 {[%emt 0:03:41]} bxc6 {[%emt 0:01:52]} 19. Qd3 {[%emt 0:02:24]} Ba3 {[%emt 0:09:57]} 20. Bxa3 {[%emt 0:01:30]} Qxa3+ {[%emt 0:00:06]} 21. Kd2 {[%emt 0:00:08]} Rb8 {[%emt 0:00:47]} 22. Qxh7 {[%emt 0:01:30]} Kf8 {[%emt 0:02:29]} 23. Qh6+ {[%emt 0:00:40]} Ke8 {[%emt 0:00:50]} 24. g3 {[%emt 0:04:54]} d4 {[%emt 0:02:27]} 25. Ne4 {[%emt 0:00:27]} Rg6 {[%emt 0:01:22]} 26. Qf4 {[%emt 0:00:21]} Qb4+ {[%emt 0:00:43]} 27. Ke2 {[%emt 0:00:09]} Bc4+ {[%emt 0:01:31]} 28. Kf2 {[%emt 0:00:15]} Bxf1 {[%emt 0:01:15]} 29. Rhxf1 {[%emt 0:00:06]} a5 {[%emt 0:00:35]} 30. Rfe1 {[%emt 0:00:23]} Kf8 {[%emt 0:00:32]} 31. Qe5 {[%emt 1:30:25]} a4 {[%emt 1:30:45]} 32. Qh8+ {[%emt 0:00:15]} Rg8 {[%emt 0:00:08]} 33. Qh6+ {[%emt 0:00:14]} Rg7 {[%emt 0:00:08]} 34. Nf6 {[%emt 0:00:08]} 1-0

[Event "GER-chT Youth Countries 2020"]
[Site "Berlin"]
[Date "2020.10.03"]
[Round "6"]
[White "Junker, Magnus"]
[Black "Dietz, Kristin"]
[Result "0-1"]
[ECO "B42"]
[WhiteElo "2093"]
[BlackElo "1913"]
[Annotator "ChessBase"]
[PlyCount "84"]
[EventDate "2020.09.30"]
[EventType "team-tourn"]
[EventRounds "7"]
[EventCountry "GER"]
[SourceTitle "playchess.com"]
[Source "ChessBase"]
[SourceQuality "1"]
[TimeControl "30/5400+30:0"]

1. e4 {[%emt 0:00:00]} c5 {[%emt 0:00:00]} 2. Nf3 {[%emt 0:00:00]} e6 {[%emt 0:00:00]} 3. d4 {[%emt 0:00:00]} cxd4 {[%emt 0:00:00]} 4. Nxd4 {[%emt 0:00:00]} a6 {[%emt 0:00:00]} 5. Bd3 {[%emt 0:00:00]} Nf6 {[%emt 0:00:39]} 6. c4 {[%emt 0:00:27]} Nc6 {[%emt 0:02:29]} 7. Nf3 {[%emt 0:00:09]} Qc7 {[%emt 0:00:17]} 8. O-O {[%emt 0:00:10]} g6 {[%emt 0:02:00]} 9. Nc3 {[%emt 0:02:21]} Bg7 {[%emt 0:00:39]} 10. Qe2 {[%emt 0:00:38]} O-O {[%emt 0:00:29]} 11. Bg5 {[%emt 0:00:53]} d6 {[%emt 0:00:16]} 12. Rfd1 {[%emt 0:00:49]} b6 {[%emt 0:01:43]} 13. Rd2 {[%emt 0:00:29]} Bb7 {[%emt 0:02:46]} 14. Rad1 {[%emt 0:00:10]} Rad8 {[%emt 0:07:21]} 15. Bb1 {[%emt 0:00:32]} Na5 {[%emt 0:03:53]} 16. b3 {[%emt 0:05:07]} b5 {[%emt 0:07:26]} 17. e5 {[%emt 0:03:04]} dxe5 {[%emt 0:09:06]} 18. Rxd8 {[%emt 0:00:07]} Rxd8 {[%emt 0:00:05]} 19. Rxd8+ {[%emt 0:00:09]} Qxd8 {[%emt 0:00:03]} 20. cxb5 {[%emt 0:00:10]} axb5 {[%emt 0:04:56]} 21. Nxb5 {[%emt 0:01:46]} Ba6 {[%emt 0:05:47]} 22. Nxe5 {[%emt 0:06:40]} Qd5 {[%emt 0:05:43]} 23. Bd3 {[%emt 0:00:48]} Bxb5 {[%emt 0:01:03]} 24. Bxb5 {[%emt 0:00:40]} Ne4 {[%emt 0:00:12]} 25. Qc2 {[%emt 0:17:36]} Bxe5 {[%emt 0:17:56]} 26. Qc8+ {[%emt 0:00:07]} Kg7 {[%emt 0:00:04]} 27. Be7 {[%emt 0:00:09]} g5 {[%emt 0:00:58]} 28. Qf8+ {[%emt 0:07:34]} Kg6 {[%emt 0:00:07]} 29. Qg8+ {[%emt 0:00:02]} Bg7 {[%emt 0:02:44]} 30. Bf8 {[%emt 0:04:01]} Qd4 {[%emt 0:00:25]} 31. Qxg7+ {[%emt 1:30:32]} Qxg7 {[%emt 1:30:06]} 32. Bxg7 {[%emt 0:00:05]} Kxg7 {[%emt 0:00:01]} 33. b4 {[%emt 0:00:10]} Nc3 {[%emt 0:01:33]} 34. Bd7 {[%emt 0:01:54]} Nc4 {[%emt 0:01:28]} 35. Kf1 {[%emt 0:04:18]} Kf6 {[%emt 0:00:37]} 36. b5 {[%emt 0:00:50]} Nxa2 {[%emt 0:00:17]} 37. Ke2 {[%emt 0:00:12]} Nc3+ {[%emt 0:01:03]} 38. Ke1 {[%emt 0:01:36]} Ke7 {[%emt 0:00:42]} 39. Bc6 {[%emt 0:00:50]} Ne5 {[%emt 0:00:39]} 40. Ba8 {[%emt 0:00:06]} Nxb5 {[%emt 0:00:27]} 41. f3 {[%emt 0:00:55]} Nd6 {[%emt 0:00:18]} 42. Kf2 {[%emt 0:00:47]} Kd7 {[%emt 0:00:07]} 0-1

[Event "GER-chT Youth Countries 2020"]
[Site "Berlin"]
[Date "2020.10.03"]
[Round "6"]
[White "Gallasch, Jonas"]
[Black "Haack, Kevin"]
[Result "1-0"]
[ECO "D35"]
[WhiteElo "2090"]
[BlackElo "2209"]
[Annotator "ChessBase"]
[PlyCount "113"]
[EventDate "2020.09.30"]
[EventType "team-tourn"]
[EventRounds "7"]
[EventCountry "GER"]
[SourceTitle "playchess.com"]
[Source "ChessBase"]
[SourceQuality "1"]
[TimeControl "30/5400+30:0"]

1. d4 {[%emt 0:00:00]} d5 2. c4 {[%emt 0:00:00]} e6 {[%emt 0:00:00]} 3. Nc3 {[%emt 0:00:00]} Nf6 {[%emt 0:00:00]} 4. cxd5 {[%emt 0:00:08]} exd5 {[%emt 0:00:00]} 5. Bg5 {[%emt 0:00:12]} Be7 {[%emt 0:00:27]} 6. e3 {[%emt 0:00:30]} c6 7. Bd3 {[%emt 0:00:00]} Nbd7 {[%emt 0:01:05]} 8. Qc2 {[%emt 0:00:21]} h6 {[%emt 0:00:26]} 9. Bh4 {[%emt 0:00:44]} Nh5 {[%emt 0:00:09]} 10. Bxe7 {[%emt 0:00:14]} Qxe7 {[%emt 0:01:35]} 11. Nge2 {[%emt 0:04:30]} Nb6 {[%emt 0:03:26]} 12. h3 {[%emt 0:06:14]} Nf6 {[%emt 0:00:43]} 13. O-O {[%emt 0:10:49]} O-O {[%emt 0:06:53]} 14. Rab1 {[%emt 0:03:47]} a5 {[%emt 0:04:46]} 15. Ng3 {[%emt 0:03:24]} Re8 {[%emt 0:06:37]} 16. Rfe1 {[%emt 0:08:42]} Be6 {[%emt 0:05:23]} 17. a3 {[%emt 0:07:24]} Qd7 {[%emt 0:08:58]} 18. f4 {[%emt 0:04:26]} Qc7 {[%emt 0:02:04]} 19. Qf2 {[%emt 0:09:22]} Bd7 {[%emt 0:10:27]} 20. Rbc1 {[%emt 0:11:42]} Nc8 {[%emt 0:04:47]} 21. Qf3 {[%emt 0:04:47]} Qb8 {[%emt 0:03:27]} 22. Na4 {[%emt 0:06:45]} Qc7 {[%emt 0:09:17]} 23. f5 {[%emt 0:01:21]} b6 {[%emt 0:02:49]} 24. Nc3 {[%emt 0:00:58]} Qb8 {[%emt 0:02:41]} 25. e4 {[%emt 0:01:38]} dxe4 {[%emt 0:03:12]} 26. Ncxe4 {[%emt 0:00:33]} Nxe4 {[%emt 0:01:29]} 27. Bxe4 {[%emt 0:03:28]} Qd6 {[%emt 0:06:45]} 28. Kh1 {[%emt 0:02:51]} Ra7 {[%emt 0:01:56]} 29. Rcd1 {[%emt 0:04:31]} Ne7 {[%emt 0:03:48]} 30. Nh5 {[%emt 0:02:38]} Nd5 31. Bxd5 {[%emt 1:30:04]} Rxe1+ {[%emt 1:31:26]} 32. Rxe1 {[%emt 0:02:43]} cxd5 {[%emt 0:04:39]} 33. f6 {[%emt 0:01:12]} g6 34. Ng3 {[%emt 0:00:17]} Ra8 {[%emt 0:02:09]} 35. Re5 {[%emt 0:00:05]} Be6 {[%emt 0:00:57]} 36. Ne2 {[%emt 0:00:38]} Re8 37. Nf4 {[%emt 0:00:07]} Kh7 {[%emt 0:04:39]} 38. Qe3 {[%emt 0:01:15]} Qc6 39. Kh2 {[%emt 0:00:07]} Qd6 {[%emt 0:01:48]} 40. Kh1 {[%emt 0:00:00]} Qc6 {[%emt 0:00:00]} 41. Nxd5 {[%emt 0:00:00]} Rd8 {[%emt 0:00:00]} 42. Nc3 {[%emt 0:00:00]} Bf5 {[%emt 0:00:00]} 43. Qf2 {[%emt 0:00:00]} Qd6 44. Rd5 Qxf6 {[%emt 0:00:00]} 45. Rxd8 {[%emt 0:00:00]} Qxd8 {[%emt 0:00:00]} 46. d5 {[%emt 0:00:00]} Kg8 {[%emt 0:00:00]} 47. Qf4 {[%emt 0:00:00]} b5 {[%emt 0:00:00]} 48. d6 {[%emt 0:00:00]} Bd7 {[%emt 0:00:00]} 49. Nd5 {[%emt 0:00:00]} Be6 50. Nf6+ {[%emt 0:00:00]} Kg7 {[%emt 0:00:00]} 51. Ne4 {[%emt 0:01:59]} Bf5 {[%emt 0:00:00]} 52. Nc3 {[%emt 0:00:22]} Bd7 {[%emt 0:01:29]} 53. Nd5 {[%emt 0:00:09]} Be6 {[%emt 0:00:54]} 54. Qe5+ {[%emt 0:00:27]} Kh7 {[%emt 0:00:14]} 55. Nf6+ Kh8 {[%emt 0:00:09]} 56. Ne8+ {[%emt 0:00:43]} f6 57. Qxe6 1-0

[Event "GER-chT Youth Countries 2020"]
[Site "Berlin"]
[Date "2020.10.03"]
[Round "6"]
[White "Bakiev, Diyor"]
[Black "Muedder, Melanie"]
[Result "0-1"]
[ECO "B22"]
[WhiteElo "2070"]
[BlackElo "2039"]
[Annotator "ChessBase"]
[PlyCount "60"]
[EventDate "2020.09.30"]
[EventType "team-tourn"]
[EventRounds "7"]
[EventCountry "GER"]
[SourceTitle "playchess.com"]
[Source "ChessBase"]
[SourceQuality "1"]
[TimeControl "30/5400+30:0"]

1. e4 {[%emt 0:00:00]} c5 {[%emt 0:00:00]} 2. c3 {[%emt 0:00:00]} d5 {[%emt 0:00:00]} 3. exd5 {[%emt 0:00:00]} Qxd5 {[%emt 0:00:00]} 4. d4 {[%emt 0:00:00]} Nc6 {[%emt 0:00:07]} 5. Nf3 {[%emt 0:00:03]} Bf5 {[%emt 0:00:01]} 6. Be3 {[%emt 0:00:31]} Nf6 7. Na3 {[%emt 0:00:27]} cxd4 {[%emt 0:00:52]} 8. Bc4 Qa5 {[%emt 0:00:58]} 9. Nxd4 {[%emt 0:00:23]} Nxd4 {[%emt 0:00:44]} 10. Bxd4 e5 {[%emt 0:00:58]} 11. Bb5+ {[%emt 0:00:28]} Bd7 {[%emt 0:00:33]} 12. Bxd7+ {[%emt 0:00:32]} Nxd7 {[%emt 0:00:09]} 13. Nc4 {[%emt 0:00:07]} Qd5 {[%emt 0:00:53]} 14. Qe2 {[%emt 0:00:27]} f6 {[%emt 0:01:46]} 15. O-O {[%emt 0:03:49]} Be7 16. f4 exd4 {[%emt 0:18:44]} 17. Rae1 {[%emt 0:39:53]} O-O-O {[%emt 0:16:17]} 18. Qd3 {[%emt 0:19:40]} Bc5 19. Kh1 Nb6 {[%emt 0:07:22]} 20. Nxb6+ {[%emt 0:04:57]} Bxb6 {[%emt 0:00:10]} 21. c4 {[%emt 0:04:35]} Qd7 {[%emt 0:10:52]} 22. c5 {[%emt 0:03:48]} Bc7 23. b4 {[%emt 0:03:06]} Rhe8 {[%emt 0:06:55]} 24. b5 Rxe1 {[%emt 0:09:44]} 25. Rxe1 {[%emt 0:00:39]} Re8 {[%emt 0:03:38]} 26. Rb1 {[%emt 0:07:10]} Re3 27. Qc4 Qe6 {[%emt 0:06:40]} 28. Qb4 {[%emt 0:01:03]} Qe4 29. b6 {[%emt 0:03:27]} a5 {[%emt 0:07:06]} 30. c6 {[%emt 0:03:03]} axb4 {[%emt 0:00:15]} 0-1